bitfinex/quotes_ETHUSD_20241216
["timestamp","ask_amount","ask_price","bid_price","bid_amount"]
[1734319029694,0.7849,3961.5,3960.7,0.87024117]
[1734319029903,0.7849,3961.5,3960.6,2.52486]
[1734319030870,0.7849,3961.5,3960.4,0.29278442]
[1734319031078,0.7849,3961.5,3960.8,2.52474]
[1734319031593,0.7849,3961.5,3960.5,0.13133931]
[1734319031795,0.7849,3961.5,3960.6,2.52484]
[1734319033016,0.7849,3961.5,3960.5,0.13133931]
[1734319033614,0.7849,3961.5,3960.5,2.65623931]
[1734319033813,0.7849,3961.5,3960.6,2.52484]
[1734319034314,0.7849,3961.5,3960.7,2.52479]
[1734319034719,0.7849,3961.5,3960.5,0.13133931]
[1734319034922,0.7849,3961.5,3961.1,2.52454]
[1734319036024,0.7671,3962.7,3961.5,2.52429]
[1734319036241,0.7671,3962.5,3961.5,2.52429]
[1734319036397,0.7671,3962.5,3961.1,0.28094529]
[1734319036596,0.7671,3962.5,3961.8,2.52407]
[1734319036807,0.7671,3962.5,3961.3,2.52439]
[1734319037013,0.7671,3962.5,3961.2,0.29278442]
[1734319037014,0.7671,3962.5,3961.9,2.52402]
[1734319039331,0.7671,3962.5,3961.6,2.2873]
[1734319039887,0.7671,3962.5,3961.9,2.52403]
[1734319040294,0.7671,3962.5,3962.0,2.52393]
[1734319040615,0.7671,3962.5,3962.0,1.512]
[1734319041438,0.7671,3962.5,3961.8,1.512]
[1734319041588,0.7671,3962.5,3962.0,1.512]
[1734319041790,0.7671,3962.5,3962.1,2.52386]
[1734319042226,0.7671,3962.5,3962.0,1.512]
[1734319042439,0.7671,3962.5,3962.2,2.52384]
[1734319045299,0.7671,3962.5,3961.3,0.8151]
[1734319045495,0.7936,3962.4,3961.0,0.8151]
[1734319045808,0.7936,3962.4,3961.4,2.52435]
[1734319046010,0.7936,3962.4,3961.0,0.8151]
[1734319046196,0.7936,3962.4,3961.8,2.52405]
[1734319046534,0.7936,3962.4,3961.3,2.52437]
[1734319046920,0.7936,3962.4,3961.6,2.52418]
[1734319048012,0.7936,3962.4,3961.4,2.52434]
[1734319048412,0.7936,3962.4,3961.1,0.28094529]
[1734319048413,0.7936,3962.4,3961.2,1.512]
[1734319048633,0.7936,3962.4,3961.2,1.79294529]
[1734319049033,0.7936,3962.4,3961.4,2.52434]
[1734319049816,0.7936,3962.4,3961.6,2.5242]
[1734319050139,0.7936,3962.4,3961.2,1.79294529]
[1734319050140,0.7936,3962.4,3961.7,2.5241]
[1734319051166,0.7936,3962.4,3961.5,2.52428]
[1734319051708,0.7936,3962.4,3961.3,2.52442]
[1734319052104,0.7754,3962.2,3961.3,2.52442]
[1734319052601,0.28658887,3962.3,3960.4,1.04941374]
[1734319052602,0.7754,3962.0,3960.4,1.04941374]
[1734319052842,0.7754,3962.0,3960.5,2.52493]
[1734319053109,0.7754,3962.0,3960.4,2.35461286]
[1734319053110,0.7754,3961.6,3960.4,0.4122829]
[1734319053324,0.7754,3961.6,3960.5,2.52492]
[1734319053733,0.7754,3961.5,3960.5,2.52492]
[1734319054780,0.7754,3961.5,3960.4,0.4122829]
[1734319055083,2.07228869,3961.3,3960.4,0.13133761]
[1734319055243,0.7754,3961.2,3959.9,0.29278442]
[1734319055440,0.7754,3961.1,3959.9,1.62314345]
[1734319055639,0.7754,3961.1,3960.4,2.52498]
[1734319056445,0.7754,3961.1,3960.1,2.52512]
[1734319056647,0.7754,3961.1,3960.2,0.87054543]
[1734319056946,0.7754,3961.1,3960.2,3.39566543]
[1734319057279,0.7754,3961.1,3960.2,2.52512]
[1734319057784,0.7754,3961.1,3960.3,2.52504]
[1734319058642,0.7754,3961.1,3960.1,2.52518]
[1734319060201,0.7754,3961.1,3960.2,2.5251]
[1734319060692,0.7754,3961.1,3959.7,2.81820442]
[1734319060980,0.7754,3960.8,3959.6,0.13134458]
[1734319062155,0.7754,3960.8,3959.9,2.52531]
[1734319064683,0.7754,3960.8,3960.7,2.5248]
[1734319065190,0.7592,3961.1,3960.7,2.5248]
[1734319068571,0.7592,3961.1,3960.5,2.52492]
[1734319068773,0.7592,3961.1,3960.6,0.87108399]
[1734319068959,0.7592,3961.1,3960.5,2.52492]
[1734319069287,0.7592,3961.1,3960.2,1.04941374]
[1734319069489,0.7592,3961.1,3960.0,2.94825033]
[1734319069490,0.7592,3961.1,3960.3,0.87112339]
[1734319069664,0.7592,3961.1,3960.4,2.52499]
[1734319069868,0.7592,3961.1,3960.1,1.04941374]
[1734319069869,0.7592,3961.1,3960.5,2.52492]
[1734319070588,0.7592,3961.1,3960.3,2.52505]
[1734319071056,0.7592,3961.1,3960.4,0.87140608]
[1734319071254,0.7592,3961.1,3960.3,2.52505]
[1734319071593,0.7592,3961.1,3960.4,0.87149506]
[1734319071892,0.7592,3961.1,3960.3,2.52505]
[1734319072194,0.7592,3961.1,3959.9,1.57412062]
[1734319072195,14.09913042,3960.0,3959.9,2.52526]
[1734319072393,14.09913042,3960.0,3959.9,4.26827609]
[1734319073182,14.09913042,3960.0,3959.9,2.52526]
[1734319073556,14.09913042,3960.0,3959.9,4.03726]
[1734319074370,14.09913042,3960.0,3959.9,2.52526]
[1734319075587,14.09913042,3960.0,3959.6,1.64334458]
[1734319075789,14.09913042,3960.0,3959.9,2.52531]
[1734319077307,12.83650042,3960.0,3959.9,4.86671]
[1734319077510,7.78598042,3960.0,3959.9,6.85945828]
[1734319077692,7.78598042,3960.0,3959.9,9.22667149]
[1734319077893,2.73546042,3960.0,3959.9,7.127844]
[1734319078080,1.47283042,3960.0,3959.9,9.76286419]
[1734319078685,1.47283042,3960.0,3959.9,6.85945828]
[1734319078881,1.47283042,3960.0,3959.9,6.6019251]
[1734319079092,1.47283042,3960.0,3959.9,8.70937418]
[1734319079486,1.47283042,3960.0,3959.9,6.6019251]
[1734319080474,1.47283042,3960.0,3959.9,4.03731]
[1734319080935,1.47283042,3960.0,3959.9,2.52531]
[1734319082196,1.47283042,3960.0,3959.9,3.82663762]
[1734319082598,1.47283042,3960.0,3959.9,2.52531]
[1734319084691,1.47283042,3960.0,3959.4,2.52561]
[1734319084692,0.7917,3959.9,3959.4,2.52561]
[1734319084896,0.78259745,3959.9,3959.4,2.52561]
[1734319085135,0.78259745,3959.9,3959.5,2.52556]
[1734319085342,0.78259745,3959.9,3959.6,2.5255]
[1734319085809,0.78259745,3959.9,3959.2,1.05371687]
[1734319086006,0.78259745,3959.9,3959.7,2.52542]
[1734319086395,0.78259745,3959.9,3959.4,2.52562]
[1734319086839,0.78259745,3959.9,3959.2,1.05371687]
[1734319087008,0.78259745,3959.9,3959.5,2.273]
[1734319087207,0.78259745,3959.9,3959.7,2.27289]
[1734319087537,0.78259745,3959.9,3959.8,2.27284]
[1734319089222,1.47283042,3960.0,3959.3,2.27312]
[1734319089223,1.47283042,3960.0,3959.9,2.27278]
[1734319092312,1.47283042,3960.0,3959.9,3.14134759]
[1734319092924,1.47283042,3960.0,3959.9,2.27278]
[1734319093496,1.47283042,3960.0,3959.9,3.14153496]
[1734319094638,1.47283042,3960.0,3959.6,1.512]
[1734319094639,1.47283042,3960.0,3959.6,2.2729]
[1734319094933,1.47283042,3960.0,3959.7,0.86895475]
[1734319095235,1.47283042,3960.0,3959.8,0.86913835]
[1734319095439,1.47283042,3960.0,3959.6,2.2729]
[1734319095440,1.47283042,3960.0,3959.7,2.27287]
[1734319095624,1.47283042,3960.0,3959.9,2.27278]
[1734319095816,1.47283042,3960.0,3959.9,3.14191886]
[1734319096212,1.47283042,3960.0,3959.6,3.32661687]
[1734319096412,1.47283042,3960.0,3959.7,2.1727928]
[1734319097004,1.47283042,3960.0,3959.9,2.27278]
[1734319097204,1.47283042,3960.0,3959.9,4.44639694]
[1734319099542,1.47283042,3960.0,3959.9,4.4476384]
[1734319101010,2.29723042,3960.0,3959.9,2.1748584]
[1734319101715,2.29723042,3960.0,3959.9,4.4476384]
[1734319101923,1.47283042,3960.0,3959.9,4.4476384]
[1734319102246,0.21020042,3960.0,3959.9,7.01712412]
[1734319102411,4.2e-07,3960.0,3959.9,14.07619496]
[1734319102748,4.2e-07,3960.0,3959.9,13.87755644]
[1734319103046,3.12593456,3962.3,3960.7,2.3011]
[1734319103047,0.7643,3961.8,3960.7,2.3011]
[1734319103251,0.7643,3961.8,3961.3,1.05625744]
[1734319103489,0.7643,3961.8,3961.6,2.27179]
[1734319103613,0.7643,3961.8,3961.7,0.8692876]
[1734319103806,0.7643,3961.8,3961.3,3.32822744]
[1734319104010,0.7643,3961.8,3961.5,2.27185]
[1734319104209,0.7643,3961.8,3961.6,0.86932465]
[1734319105032,0.7643,3961.8,3961.3,2.27197]
[1734319105313,0.7643,3961.8,3961.4,0.86910951]
[1734319105537,0.7643,3961.8,3961.2,1.05625744]
[1734319105538,0.7643,3961.8,3961.6,2.27179]
[1734319105942,2.07228869,3962.3,3961.6,2.27179]
[1734319105943,0.7679,3962.2,3961.6,2.27179]
[1734319106249,0.28401887,3962.1,3961.6,2.27179]
[1734319106751,0.28401887,3962.1,3961.7,2.27173]
[1734319107463,0.7679,3962.2,3961.7,2.27173]
[1734319107818,0.7679,3962.2,3961.3,1.05625744]
[1734319108052,0.7679,3962.2,3961.0,2.11251489]
[1734319108053,0.7679,3962.2,3961.4,3.57443072]
[1734319108277,2.07228869,3961.9,3961.0,1.05625744]
[1734319108552,0.5025085,3963.0,3960.8,1.05625744]
[1734319108553,1.01382887,3961.8,3960.8,1.05625744]
[1734319108751,0.8066,3961.8,3961.2,2.27202]
[1734319108916,0.8066,3961.8,3960.9,2.27216]
[1734319109119,0.8066,3961.8,3961.0,0.86844942]
[1734319109325,0.8066,3961.8,3960.9,2.27216]
[1734319109627,0.28788887,3961.7,3960.8,2.27226]
[1734319109950,0.28788887,3961.7,3960.9,2.17115675]
[1734319110121,0.7922,3961.6,3960.6,2.27238]
[1734319110322,0.7922,3961.6,3960.7,2.17123801]
[1734319110528,0.7922,3961.6,3960.8,0.86852335]
[1734319110783,0.7922,3961.6,3960.6,2.27238]
[1734319112247,0.7922,3961.6,3960.7,2.27231]
[1734319114977,0.7922,3961.6,3960.5,2.27242]
[1734319115121,0.7922,3961.6,3960.6,0.86863592]
[1734319116075,0.7922,3961.6,3960.7,2.27231]
[1734319119870,1.10743776,3961.6,3960.7,2.27231]
[1734319120067,1.10743776,3961.6,3960.7,2.2723]
[1734319120576,15.93047707,3968.3,3961.4,2.27191]
[1734319120577,0.7774,3962.2,3961.4,2.27191]
[1734319120733,0.7774,3962.2,3960.9,3.78421]
[1734319120734,0.7774,3962.2,3961.5,2.27185]
[1734319123601,0.7774,3962.2,3961.9,2.27162]
[1734319124094,0.7774,3962.2,3961.6,2.27175]
[1734319125468,0.7774,3962.2,3961.2,0.7582]
[1734319126012,0.7774,3962.2,3961.6,2.27177]
[1734319126298,0.7774,3962.2,3961.7,2.27173]
[1734319128568,0.7774,3962.2,3961.4,2.27188]
[1734319129396,0.7774,3962.2,3961.5,2.27185]
[1734319129626,0.7774,3962.2,3961.2,2.27202]
[1734319129764,0.28496887,3962.1,3961.2,2.27202]
[1734319129965,0.8254,3962.0,3960.9,2.27218]
[1734319131600,0.8254,3962.0,3961.0,2.27215]
[1734319133381,0.28496887,3962.1,3960.8,2.27225]
[1734319133382,0.8254,3961.8,3960.8,2.27225]
[1734319135004,0.8254,3961.8,3960.4,2.86329062]
[1734319135209,0.8254,3961.8,3960.6,2.27235]
[1734319135504,0.8254,3961.8,3960.7,2.27231]
[1734319135705,0.775,3961.4,3960.4,2.27246]
[1734319135904,0.775,3961.3,3960.5,0.86841805]
[1734319136091,0.775,3961.3,3960.4,2.27246]
[1734319138988,0.775,3961.3,3960.2,1.05625744]
[1734319139311,0.775,3961.3,3960.2,4.44428211]
[1734319139497,0.775,3961.3,3960.3,0.8686971]
[1734319139808,0.8192,3961.2,3960.2,2.27261]
[1734319140014,0.8192,3961.2,3960.3,0.86876391]
[1734319140213,0.8192,3961.2,3960.7,2.27228]
[1734319140409,0.8192,3961.2,3960.4,0.8027]
[1734319140712,0.8192,3961.2,3961.0,2.27209]
[1734319140914,0.8192,3961.8,3961.1,2.27209]
[1734319141220,0.8192,3961.8,3960.6,3.78438]
[1734319141221,0.8192,3961.8,3961.4,2.27188]
[1734319141388,0.8192,3961.8,3961.6,2.27178]
[1734319141589,0.8192,3961.8,3961.7,2.27175]
[1734319141899,0.8192,3962.7,3961.7,2.27175]
[1734319142399,0.8192,3962.7,3962.1,2.27151]
[1734319142606,0.8192,3962.7,3961.8,2.27164]
[1734319142976,0.8192,3962.7,3961.9,0.86870586]
[1734319143377,0.8192,3962.7,3961.8,2.27164]
[1734319143778,0.8192,3962.7,3961.9,0.86874152]
[1734319144005,1.13469002,3962.7,3961.9,0.86874152]
[1734319144191,1.13469002,3962.7,3961.8,2.27164]
[1734319144606,1.13469002,3962.7,3961.9,0.86881686]
[1734319144810,0.8192,3962.7,3961.9,0.86881686]
[1734319145011,0.8192,3962.7,3962.0,2.27156]
[1734319146301,0.8192,3962.7,3961.6,1.05625744]
[1734319146610,0.8192,3962.7,3961.8,2.27169]
[1734319146907,0.8192,3962.7,3961.9,0.86883242]
[1734319147306,0.8192,3962.7,3961.8,2.27169]
[1734319147549,2.07228869,3962.4,3961.9,0.86895615]
[1734319147749,2.07228869,3962.4,3961.7,2.27172]
[1734319147902,0.7766,3962.6,3961.8,2.17297282]
[1734319148239,0.7766,3962.6,3962.4,2.27133]
[1734319148460,0.7766,3962.6,3962.5,2.27129]
[1734319148734,0.7766,3963.1,3962.5,2.27129]
[1734319148936,0.98382887,3963.1,3962.5,2.27129]
[1734319149693,0.7766,3963.1,3961.9,1.35129062]
[1734319149898,0.7766,3963.8,3962.5,0.7785]
[1734319150233,0.7766,3963.8,3963.0,2.27094]
[1734319150443,0.7766,3963.8,3962.7,1.05625744]
[1734319150731,0.7766,3963.8,3963.4,2.27077]
[1734319151047,0.7766,3963.8,3963.1,2.27092]
[1734319151251,0.7766,3963.8,3963.2,2.27087]
[1734319151435,1.06148887,3963.8,3963.2,2.27087]
[1734319151641,1.06148887,3963.8,3962.8,0.5634189]
[1734319151803,1.06148887,3963.8,3963.1,2.27094]
[1734319152322,1.06148887,3963.8,3963.3,2.2708]
[1734319152517,0.7766,3963.8,3963.3,2.2708]
[1734319152896,0.7736,3964.2,3963.3,1.3243189]
[1734319153146,3.12593456,3965.2,3963.4,2.73169612]
[1734319153147,0.7736,3965.1,3963.4,2.73169612]
[1734319153350,1.08619346,3965.1,3964.2,2.27031]
[1734319153546,1.08619346,3965.1,3964.3,2.27024]
[1734319153727,0.31584822,3965.0,3964.3,2.27024]
[1734319154119,0.31584822,3965.0,3963.4,1.61967634]
[1734319154328,0.7736,3964.7,3963.8,2.27051]
[1734319154535,2.07228869,3964.4,3963.0,0.7609]
[1734319154741,0.7736,3964.3,3963.1,3.13718991]
[1734319154893,0.7736,3964.3,3963.1,2.27094]
[1734319155210,0.7736,3964.3,3963.6,2.27066]
[1734319156813,0.7736,3964.3,3963.3,2.27081]
[1734319157014,2.07228869,3964.4,3963.1,2.27094]
[1734319157015,0.764,3964.1,3963.1,2.27094]
[1734319157458,0.764,3964.1,3963.0,0.26838572]
[1734319157754,0.764,3964.1,3963.2,2.27088]
[1734319157956,1.07608776,3964.1,3963.2,2.27088]
[1734319158251,0.8214,3964.0,3963.2,2.27088]
[1734319158737,0.8214,3964.0,3963.0,0.26838572]
[1734319158952,0.8214,3963.8,3962.6,2.56622318]
[1734319159130,0.31208776,3964.1,3962.3,2.53973572]
[1734319159131,0.7805,3963.4,3962.3,2.53973572]
[1734319159315,0.7805,3963.4,3962.3,2.27135]
[1734319159878,0.7805,3963.4,3962.4,2.27134]
[1734319160313,0.7805,3963.4,3962.1,2.56650318]
[1734319160518,2.07228869,3963.5,3962.1,2.56650318]
[1734319160519,0.8251,3963.2,3962.1,2.56650318]
[1734319161706,2.89738869,3963.1,3962.1,0.29503318]
[1734319162050,2.80843887,3963.3,3961.6,2.27178]
[1734319162051,2.07228869,3962.7,3961.6,2.27178]
[1734319162339,0.8251,3962.6,3961.8,2.27166]
[1734319163044,0.8251,3962.6,3961.5,0.29503318]
[1734319163239,0.8251,3962.6,3961.7,2.27174]
[1734319164341,1.11483887,3962.6,3961.5,0.29503318]
[1734319164528,0.8251,3962.5,3961.5,0.29503318]
[1734319165308,0.779,3962.4,3961.5,0.29503318]
[1734319166119,2.07228869,3962.3,3961.3,2.27196]
[1734319166326,2.38639145,3962.3,3961.3,2.27196]
[1734319166945,0.779,3962.2,3961.3,2.27196]
[1734319167625,0.779,3961.8,3961.1,2.27206]
[1734319167821,0.779,3961.8,3961.0,0.29503318]
[1734319167822,0.779,3961.8,3961.2,2.27203]
[1734319168548,2.07228869,3961.7,3960.9,2.27216]
[1734319168722,0.779,3961.8,3961.2,2.27202]
[1734319170128,0.779,3961.8,3960.9,2.27216]
[1734319170314,1.06412887,3961.8,3960.9,2.27216]
[1734319170921,0.779,3961.6,3960.6,2.56737318]
[1734319171555,0.779,3961.6,3960.6,0.29503318]
[1734319172120,0.779,3961.6,3960.8,2.27225]
[1734319172535,0.779,3961.6,3960.9,2.2722]
[1734319172860,0.779,3961.6,3960.9,0.29503318]
[1734319173424,0.779,3961.6,3961.0,1.512]
[1734319173630,0.779,3961.6,3960.9,0.29503318]
[1734319173850,0.779,3961.6,3961.2,2.27203]
[1734319175879,0.779,3961.6,3960.9,0.29503318]
[1734319176574,0.779,3961.6,3961.2,2.27202]
[1734319177139,0.779,3961.6,3961.4,2.27191]
[1734319177336,0.779,3961.6,3960.9,0.29503318]
[1734319177539,0.779,3961.6,3961.1,2.27203]
[1734319178354,0.779,3961.6,3961.2,2.27201]
[1734319178552,0.779,3961.6,3960.9,0.29503318]
[1734319178757,2.07228869,3962.1,3960.4,1.512]
[1734319178758,0.7523,3962.1,3961.3,0.7666]
[1734319179087,0.7523,3962.8,3962.2,2.27146]
[1734319179259,0.7523,3962.8,3962.4,2.2713]
[1734319180064,0.7523,3962.8,3961.4,2.86329062]
[1734319180065,0.7523,3962.8,3961.8,2.27168]
[1734319180377,0.7523,3962.8,3961.6,1.512]
[1734319180378,0.7523,3962.8,3962.1,2.27147]
[1734319181249,0.7523,3962.8,3962.0,2.27155]
[1734319181448,0.7523,3962.8,3960.7,2.27231]
[1734319181449,0.8123,3961.9,3960.7,2.27231]
[1734319181748,2.07228869,3961.0,3960.2,0.7711]
[1734319181947,2.07228869,3961.0,3960.6,2.27238]
[1734319182572,2.07228869,3961.0,3960.2,0.7711]
[1734319182809,2.07228869,3961.0,3960.5,2.27243]
[1734319183323,2.07228869,3961.0,3960.0,2.54110572]
[1734319183471,2.07228869,3961.0,3960.3,2.27251]
[1734319183969,2.07228869,3961.0,3960.4,2.27249]
[1734319184423,2.07228869,3961.0,3960.1,0.29503318]
[1734319184625,2.07228869,3961.0,3960.5,2.27243]
[1734319186617,2.07228869,3961.0,3960.1,0.29503318]
[1734319186912,2.07228869,3961.0,3960.4,2.52498]
[1734319187412,2.07228869,3962.0,3960.5,0.26838572]
[1734319187571,0.7993,3961.9,3961.2,2.52448]
[1734319188013,0.7993,3961.9,3960.5,0.5634189]
[1734319188014,0.7993,3961.9,3961.3,2.52442]
[1734319188311,2.07228869,3961.6,3961.3,2.52442]
[1734319188513,2.07228869,3961.6,3961.0,2.52456]
[1734319188739,2.07228869,3961.6,3961.2,2.52448]
[1734319189913,2.07228869,3961.6,3961.3,2.5244]
[1734319191094,0.7993,3961.9,3960.8,0.8108]
[1734319191279,2.82238869,3962.4,3961.9,2.52403]
[1734319191484,2.82238869,3962.4,3961.4,2.52434]
[1734319191720,2.82238869,3962.4,3961.8,2.52404]
[1734319192015,2.82238869,3962.4,3961.6,2.52419]
[1734319192016,0.7501,3962.4,3961.6,2.52419]
[1734319193134,0.7501,3962.4,3961.8,2.52408]
[1734319193473,0.7501,3962.4,3961.5,2.52424]
[1734319193679,0.7501,3962.4,3961.3,4.03641]
[1734319193914,0.7501,3962.4,3961.8,2.52409]
[1734319194855,0.7501,3962.4,3961.8,2.49409]
[1734319195150,0.7501,3962.4,3961.9,2.52403]
[1734319198114,0.7501,3962.4,3961.3,1.80703318]
[1734319198455,0.7501,3962.4,3961.6,2.5242]
[1734319198625,0.7501,3962.4,3961.7,2.52415]
[1734319198822,0.7501,3962.4,3961.3,1.80703318]
[1734319198823,0.8015,3962.3,3961.4,2.52433]
[1734319200360,0.8015,3962.3,3961.0,1.512]
[1734319200555,0.8015,3962.3,3961.2,2.52448]
[1734319200849,0.7659,3962.0,3961.3,2.52442]
[1734319201155,1.04971887,3962.0,3961.3,2.52442]
[1734319201878,1.04971887,3962.0,3960.5,1.58438616]
[1734319201879,0.7744,3961.6,3960.5,2.52493]
[1734319202081,0.7744,3961.6,3960.6,2.52485]
[1734319202249,0.7744,3961.6,3960.2,1.88435744]
[1734319202451,0.7744,3961.6,3960.7,2.52478]
[1734319202759,0.28466887,3961.5,3960.7,2.52478]
[1734319204598,0.7744,3961.4,3960.6,2.52484]
[1734319204741,0.7744,3961.4,3960.7,4.69750545]
[1734319204943,0.7744,3961.4,3960.8,3.39382018]
[1734319205244,0.7744,3961.4,3960.8,2.52473]
[1734319205867,0.7744,3961.4,3961.0,2.52458]
[1734319207075,0.7744,3961.4,3960.8,2.52472]
[1734319207275,0.7744,3961.4,3960.9,3.39409561]
[1734319207467,0.7744,3961.4,3960.9,2.52466]
[1734319208183,0.7744,3961.4,3960.7,1.05625744]
[1734319208365,0.7744,3961.4,3961.0,2.52461]
[1734319208892,0.7744,3961.4,3961.1,0.86956061]
[1734319209094,0.7744,3961.4,3961.0,2.52461]
[1734319209389,0.7744,3961.4,3961.1,0.86956978]
[1734319209591,0.7744,3961.4,3961.0,2.52461]
[1734319210197,0.7744,3961.4,3960.6,1.58438616]
[1734319210198,0.7744,3961.4,3960.6,1.05625744]
[1734319210492,0.7744,3961.4,3960.3,0.29503318]
[1734319210493,0.7612,3961.2,3960.7,0.86972687]
[1734319210793,0.7612,3961.2,3960.4,1.05625744]
[1734319211965,2.07228869,3960.9,3960.5,0.86976756]
[1734319212315,2.07228869,3960.9,3959.9,2.40754807]
[1734319212316,0.768,3960.8,3959.9,1.05625744]
[1734319212477,0.768,3960.8,3960.0,2.17459447]
[1734319212714,0.7714,3960.6,3959.7,3.58168744]
[1734319212901,0.7714,3960.6,3959.8,2.1741463]
[1734319213637,0.7714,3960.6,3959.6,1.05625744]
[1734319213858,0.7714,3960.6,3959.6,3.22982899]
[1734319214048,0.7714,3960.6,3959.7,2.17357155]
[1734319214341,0.7714,3960.4,3959.5,3.58182744]
[1734319214522,0.7714,3960.4,3959.6,4.6990258]
[1734319214708,0.7714,3960.4,3959.7,0.86941832]
[1734319215107,0.7714,3960.4,3959.2,3.58198744]
[1734319215325,0.7714,3960.0,3959.3,2.17304637]
[1734319215534,0.7714,3960.0,3958.9,0.29503318]
[1734319215730,0.7714,3960.0,3959.0,3.39476504]
[1734319216043,0.7714,3960.0,3959.0,2.52588]
[1734319216259,2.07228869,3959.7,3958.9,0.29503318]
[1734319216514,0.816,3959.6,3958.7,2.52603]
[1734319216785,0.816,3959.6,3958.5,2.82123318]
[1734319216933,2.07228869,3959.3,3958.5,0.29503318]
[1734319217133,0.8022,3959.2,3958.5,0.29503318]
[1734319217378,0.8022,3958.8,3958.0,1.05625744]
[1734319217585,0.8022,3958.8,3958.1,0.86852947]
[1734319217887,0.8022,3958.8,3958.1,2.82143318]
[1734319218186,0.8022,3958.8,3958.2,2.52636]
[1734319219036,0.8022,3958.8,3958.4,2.52625]
[1734319219873,0.8022,3958.8,3958.2,0.29503318]
[1734319220174,0.8022,3958.8,3958.6,2.52612]
[1734319221574,0.7523,3959.6,3958.4,2.52626]
[1734319221775,0.7523,3959.6,3958.9,2.52591]
[1734319221979,0.28245887,3959.5,3958.9,2.52591]
[1734319223984,0.28245887,3959.5,3958.6,0.29503318]
[1734319223985,0.28245887,3959.5,3959.0,2.52588]
[1734319224351,0.7523,3959.6,3959.3,2.52568]
[1734319224791,0.7523,3959.6,3959.4,2.52563]
[1734319226689,0.7523,3959.6,3959.0,2.52587]
[1734319226884,0.7523,3959.6,3958.6,0.29503318]
[1734319227082,0.7523,3959.6,3959.1,2.52582]
[1734319228295,0.7523,3959.6,3958.9,2.52594]
[1734319228767,0.7523,3959.6,3958.6,2.82113318]
[1734319228969,0.7523,3959.6,3958.3,0.26838572]
[1734319229168,0.28245887,3959.5,3958.6,2.52612]
[1734319229581,0.8168,3959.4,3958.6,2.52612]
[1734319230173,0.8168,3959.4,3958.7,2.52607]
[1734319231426,0.8168,3959.4,3958.3,0.26838572]
[1734319231596,0.8168,3959.4,3958.5,2.5262]
[1734319231799,1.13395476,3959.4,3958.6,2.52611]
[1734319232000,1.13395476,3959.4,3958.3,0.26838572]
[1734319232163,1.13395476,3959.4,3958.6,2.52612]
[1734319232886,1.13395476,3959.4,3958.3,0.26838572]
[1734319232887,0.7899,3959.2,3958.4,2.52627]
[1734319233291,1.10783435,3959.2,3958.1,2.82144318]
[1734319233601,0.7899,3959.1,3958.1,0.29503318]
[1734319233804,2.07228869,3958.9,3958.2,2.52639]
[1734319233978,2.07228869,3958.9,3958.3,2.52633]
[1734319234579,2.07228869,3958.9,3958.4,2.52626]
[1734319234765,0.7899,3959.1,3958.4,2.52626]
[1734319237031,0.7899,3959.1,3958.1,2.82145318]
[1734319237259,0.7583,3959.0,3958.2,2.52639]
[1734319237543,0.3180123,3959.1,3957.5,0.89876901]
[1734319237544,2.84368869,3958.9,3957.5,0.89876901]
[1734319237834,0.7714,3958.8,3957.9,2.52655]
[1734319238591,2.07228869,3958.5,3957.6,0.29503318]
[1734319238792,0.8263,3958.4,3957.6,0.29503318]
[1734319238996,0.8263,3958.4,3957.7,2.5267]
[1734319239414,0.8287,3958.3,3957.5,2.52684]
[1734319239623,0.8287,3958.0,3957.2,2.52703]
[1734319239960,0.8287,3958.0,3957.3,2.52691]
[1734319240247,0.8287,3958.0,3957.4,0.29503318]
[1734319240414,0.8287,3958.0,3957.5,2.52679]
[1734319241617,0.8287,3958.0,3957.4,0.29503318]
[1734319241800,0.8287,3958.0,3957.4,2.82193318]
[1734319242001,0.8287,3958.0,3956.9,0.27338572]
[1734319242254,0.8287,3958.0,3957.3,2.52696]
[1734319242757,0.8287,3958.0,3957.7,2.52668]
[1734319242957,2.52595,3958.9,3957.7,0.26838572]
[1734319242958,0.7817,3958.8,3957.7,0.26838572]
[1734319243143,0.7817,3958.8,3958.0,2.52652]
[1734319243970,0.7817,3958.8,3957.7,0.29503318]
[1734319244143,1.06709887,3958.8,3957.7,0.29503318]
[1734319244455,1.06709887,3958.8,3958.0,2.5265]
[1734319246144,2.07228869,3958.5,3957.3,0.8233]
[1734319246356,2.07228869,3958.5,3957.6,2.52675]
[1734319247727,2.07228869,3958.5,3957.3,0.8233]
[1734319247931,4.59849869,3958.5,3957.2,2.52703]
[1734319248232,0.45984987,3958.4,3957.3,2.52697]
[1734319249153,0.7746,3958.3,3957.4,2.52689]
[1734319249335,0.7746,3958.3,3957.0,0.29503318]
[1734319249534,2.07228869,3958.1,3957.1,2.52708]
[1734319249840,0.7746,3958.0,3957.1,2.52708]
[1734319250283,0.7746,3957.9,3957.0,0.29503318]
[1734319250646,0.7746,3957.9,3957.2,2.52702]
[1734319251143,0.7746,3957.9,3957.0,0.5634189]
[1734319251347,0.7746,3957.9,3957.0,3.0905789]
[1734319252446,0.53732787,3958.0,3955.4,0.39965288]
[1734319252447,0.7746,3957.3,3955.8,1.515]
[1734319252649,0.7746,3957.3,3956.4,2.5275]
[1734319254248,0.7746,3957.3,3956.5,2.52747]
[1734319254447,0.7919,3956.8,3955.4,0.1629398]
[1734319254683,0.81,3955.9,3955.4,0.1629398]
[1734319258370,0.81,3955.9,3955.5,2.5281]
[1734319259554,0.81,3955.9,3955.4,0.1629398]
[1734319260665,0.7679,3955.5,3955.4,0.1629398]
[1734319263789,0.25,3957.2,3955.4,0.1629398]
[1734319263790,0.7679,3956.0,3955.4,0.1629398]
[1734319263992,0.7679,3956.0,3955.8,2.52789]
[1734319264568,0.7679,3956.0,3955.4,0.1629398]
[1734319264765,2.84018869,3956.0,3955.4,0.1629398]
[1734319265056,3.12420756,3956.0,3955.4,0.1629398]
[1734319265261,0.8028,3955.5,3955.4,0.1629398]
[1734319267415,2.07228869,3955.6,3955.4,0.1629398]